fUST/lending_fUST_20250913
["ID","MTS","AMOUNT","RATE_DAILY","PERIOD"]
[385236900,1757699446650,-151.0,0.000218,2]
[385236902,1757699446659,-151.0,0.000218,2]
[385236904,1757699446667,-151.0,0.000218,2]
[385236906,1757699446676,-151.0,0.000218,2]
[385236908,1757699446685,-151.0,0.000218,2]
[385236910,1757699446694,-151.0,0.000218,2]
[385236912,1757699446703,-151.0,0.000218,2]
[385236914,1757699446712,-151.0,0.000218,2]
[385236916,1757699446722,-151.0,0.000218,2]
[385236918,1757699446730,-151.0,0.000218,2]
[385236920,1757699446740,-156.148136,0.000218,2]
[385236922,1757699446750,-151.0,0.000218,2]
[385236924,1757699446759,-151.0,0.000218,2]
[385236926,1757699446769,-151.0,0.000218,2]
[385236928,1757699446779,-151.0,0.000218,2]
[385236930,1757699446788,-152.198541,0.000218,2]
[385236932,1757699446798,-151.0,0.000218,2]
[385236934,1757699446807,-151.0,0.000218,2]
[385236936,1757699446816,-151.0,0.000218,2]
[385236938,1757699446825,-151.0,0.000218,2]
[385236940,1757699446836,-151.0,0.000218,2]
[385236942,1757699446845,-151.588811,0.000218,2]
[385236944,1757699446855,-178.646586,0.000218,2]
[385236946,1757699446864,-151.0,0.000218,2]
[385236948,1757699446874,-151.0,0.000218,2]
[385236950,1757699446883,-151.0,0.000218,2]
[385236952,1757699446893,-151.0,0.000218,2]
[385236954,1757699446902,-151.0,0.000218,2]
[385236956,1757699446911,-151.0,0.000218,2]
[385236958,1757699446920,-206.434057,0.000218,2]
[385236960,1757699446929,-151.0,0.000218,2]
[385236962,1757699446938,-151.0,0.000218,2]
[385236964,1757699446947,-151.0,0.000218,2]
[385236966,1757699446956,-151.0,0.000218,2]
[385236968,1757699446966,-151.0,0.000218,2]
[385236970,1757699446975,-151.0,0.000218,2]
[385236972,1757699446984,-151.0,0.000218,2]
[385236974,1757699446993,-151.0,0.000218,2]
[385236976,1757699447002,-151.0,0.000218,2]
[385236978,1757699447012,-225.104764,0.000218,2]
[385236980,1757699447021,-151.0,0.000218,2]
[385236982,1757699447030,-179.251271,0.000218,2]
[385236984,1757699447039,-179.251271,0.000218,2]
[385236986,1757699447048,-179.251271,0.000218,2]
[385236988,1757699447058,-151.0,0.000218,2]
[385236990,1757699447067,-179.251271,0.000218,2]
[385236992,1757699447076,-151.0,0.000218,2]
[385236994,1757699447087,-180.584859,0.000218,2]
[385236996,1757699447096,-180.584859,0.000218,2]
[385236998,1757699447105,-180.584859,0.000218,2]
[385237000,1757699447114,-151.0,0.000218,2]
[385237002,1757699447123,-180.584859,0.000218,2]
[385237004,1757699447134,-151.0,0.000218,2]
[385237006,1757699447143,-151.0,0.000218,2]
[385237008,1757699447153,-151.0,0.000218,2]
[385237010,1757699447162,-151.0,0.000218,2]
[385237012,1757699447171,-151.0,0.000218,2]
[385237014,1757699447180,-220.879764,0.000218,2]
[385237016,1757699447189,-151.0,0.000218,2]
[385237018,1757699447198,-201.191937,0.000218,2]
[385237020,1757699447207,-201.191937,0.000218,2]
[385237022,1757699447216,-201.191937,0.000218,2]
[385237024,1757699447225,-201.191937,0.000218,2]
[385237025,1757699447234,-151.0,0.000218,2]
[385237027,1757699447243,-151.0,0.000218,2]
[385237029,1757699447253,-151.0,0.000218,2]
[385237031,1757699447262,-151.0,0.000218,2]
[385237033,1757699447272,-151.0,0.000218,2]
[385237035,1757699447281,-151.0,0.000218,2]
[385237037,1757699447290,-151.0,0.000218,2]
[385237039,1757699447299,-461.18241,0.000218,2]
[385237041,1757699447308,-461.18241,0.000218,2]
[385237043,1757699447317,-461.18241,0.000218,2]
[385237057,1757699447438,-151.0,0.000218,2]
[385237059,1757699447448,-461.18241,0.000218,2]
[385237061,1757699447457,-151.0,0.000218,2]
[385237063,1757699447466,-151.0,0.000218,2]
[385237065,1757699447475,-151.0,0.000218,2]
[385237068,1757699447485,-151.0,0.000218,2]
[385237070,1757699447495,-214.908012,0.000218,2]
[385237072,1757699447510,-151.0,0.000218,2]
[385237074,1757699447519,-261.140728,0.000218,2]
[385237076,1757699447528,-261.140728,0.000218,2]
[385237078,1757699447539,-261.140728,0.000218,2]
[385237080,1757699447548,-151.0,0.000218,2]
[385237082,1757699447557,-261.140728,0.000218,2]
[385237084,1757699447566,-151.0,0.000218,2]
[385237086,1757699447576,-151.0,0.000218,2]
[385237088,1757699447586,-151.0,0.000218,2]
[385237090,1757699447596,-151.0,0.000218,2]
[385237092,1757699447605,-1000.0,0.000218,2]
[385237094,1757699447614,-500.0,0.00021875,2]
[385237096,1757699447623,-655.99799205,0.000219,2]
[385237098,1757699447632,-1631.82304966,0.000219,2]
[385237099,1757699447641,-175.73485997,0.00021918,2]
[385237100,1757699447650,-4000.0,0.00021924,2]
[385237101,1757699447659,-151.0,0.00021924,7]
[385237102,1757699447668,-151.0,0.00021924,7]
[385237103,1757699447678,-151.0,0.00021924,7]
[385237104,1757699447687,-151.0,0.00021924,7]
[385237105,1757699447696,-261.140728,0.00021924,7]
[385237106,1757699447705,-261.140728,0.00021924,7]
[385237107,1757699447714,-261.140728,0.00021924,7]
[385237108,1757699447723,-151.0,0.00021924,7]
[385237109,1757699447732,-261.140728,0.00021924,7]
[385237111,1757699447741,-151.0,0.00021924,7]
[385237113,1757699447751,-151.0,0.00021924,7]
[385237115,1757699447760,-151.0,0.00021924,7]
[385237117,1757699447770,-188.4666082,0.00021938,2]
[385237119,1757699447779,-500.0,0.00021973,2]
[385237121,1757699447789,-500.0,0.00021973,2]
[385237123,1757699447799,-500.0,0.00021973,2]
[385237124,1757699447811,-500.0,0.00021973,2]
[385237127,1757699447822,-500.61231435,0.00021973,2]
[385237129,1757699447833,-500.0,0.00021973,2]
[385237131,1757699447843,-512.6960186,0.00021973,2]
[385237132,1757699447852,-500.0,0.00021973,2]
[385237134,1757699447862,-500.0,0.00021973,2]
[385237136,1757699447872,-500.0,0.00021973,2]
[385237138,1757699447881,-500.0,0.00021973,2]
[385237140,1757699447891,-500.0,0.00021973,2]
[385237142,1757699447901,-151.0,0.00021973,7]
[385237144,1757699447910,-151.0,0.00021973,7]
[385237147,1757699447921,-151.0,0.00021973,7]
[385237149,1757699447930,-151.0,0.00021973,7]
[385237151,1757699447943,-151.0,0.00021973,7]
[385237153,1757699447953,-151.0,0.00021973,7]
[385237155,1757699447962,-151.0,0.00021973,7]
[385237157,1757699447972,-151.0,0.00021973,7]
[385237159,1757699447982,-151.0,0.00021973,7]
[385237161,1757699447991,-151.0,0.00021973,7]
[385237163,1757699448001,-154.981116,0.00021973,7]
[385237165,1757699448010,-151.0,0.00021973,7]
[385237167,1757699448019,-151.0,0.00021973,7]
[385237169,1757699448029,-151.0,0.00021973,7]
[385237171,1757699448039,-151.0,0.00021973,7]
[385237173,1757699448048,-151.0,0.00021973,7]
[385237175,1757699448058,-151.0,0.00021973,7]
[385237177,1757699448068,-151.0,0.00021973,7]
[385237179,1757699448078,-151.0,0.00021973,7]
[385237181,1757699448089,-151.0,0.00021973,7]
[385237183,1757699448099,-151.0,0.00021973,7]
[385237185,1757699448109,-151.0,0.00021973,2]
[385237187,1757699448119,-151.0,0.00021973,7]
[385237189,1757699448129,-151.0,0.00021973,7]
[385237191,1757699448139,-151.0,0.00021973,7]
[385237193,1757699448149,-179.251271,0.00021973,7]
[385237195,1757699448159,-179.251271,0.00021973,7]
[385237197,1757699448169,-179.251271,0.00021973,7]
[385237199,1757699448179,-151.0,0.00021973,7]
[385237201,1757699448188,-179.251271,0.00021973,7]
[385237203,1757699448198,-151.0,0.00021973,7]
[385237206,1757699448208,-180.584859,0.00021973,7]
[385237207,1757699448217,-180.584859,0.00021973,7]
[385237209,1757699448228,-180.584859,0.00021973,7]
[385237211,1757699448237,-151.0,0.00021973,7]
[385237213,1757699448247,-180.584859,0.00021973,7]
[385237215,1757699448257,-151.0,0.00021973,7]
[385237217,1757699448266,-151.0,0.00021973,7]
[385237220,1757699448276,-151.0,0.00021973,7]
[385237222,1757699448286,-151.0,0.00021973,7]
[385237223,1757699448295,-201.191937,0.00021973,7]
[385237225,1757699448304,-201.191937,0.00021973,7]
[385237227,1757699448313,-201.191937,0.00021973,7]
[385237229,1757699448323,-201.191937,0.00021973,7]
[385237232,1757699448337,-151.0,0.00021973,7]
[385237234,1757699448346,-151.0,0.00021973,7]
[385237236,1757699448356,-151.0,0.00021973,7]
[385237238,1757699448365,-211.820753,0.00021973,7]
[385237240,1757699448374,-461.18241,0.00021973,7]
[385237242,1757699448384,-461.18241,0.00021973,7]
[385237244,1757699448393,-461.18241,0.00021973,7]
[385237246,1757699448402,-151.0,0.00021973,7]
[385237248,1757699448412,-461.18241,0.00021973,7]
[385237250,1757699448421,-623.93466744,0.0002199,2]
[385237252,1757699448430,-151.0,0.0002199,7]
[385237254,1757699448440,-151.0,0.0002199,7]
[385237256,1757699448449,-151.0,0.0002199,7]
[385237258,1757699448458,-174.269199,0.0002199,7]
[385237260,1757699448467,-151.0,0.0002199,7]
[385237262,1757699448476,-151.0,0.0002199,7]
[385237264,1757699448486,-176.327,0.00021996,2]
[385237266,1757699448496,-5265.74,0.00022,7]
[385237268,1757699448508,-13890.94,0.00022,7]
[385237270,1757699448517,-3152.28,0.00022,7]
[385237272,1757699448526,-159817.92,0.00022,7]
[385237274,1757699448536,-151.0,0.00022,7]
[385237276,1757699448545,-151.0,0.00022,7]
[385237278,1757699448554,-151.0,0.00022,7]
[385237280,1757699448563,-154.47527,0.00022,7]
[385237282,1757699448573,-151.0,0.00022,7]
[385237284,1757699448584,-151.0,0.00022,7]
[385237286,1757699448594,-151.0,0.00022,7]
[385237288,1757699448604,-151.0,0.00022,7]
[385237290,1757699448613,-299.191084,0.00022,7]
[385237292,1757699448623,-151.0,0.00022,7]
[385237294,1757699448632,-151.0,0.00022,7]
[385237296,1757699448641,-151.0,0.00022,7]
[385237298,1757699448650,-151.0,0.00022,7]
[385237300,1757699448659,-151.0,0.00022,7]
[385237302,1757699448669,-151.0,0.00022,7]
[385237304,1757699448678,-151.0,0.00022,7]
[385237306,1757699448687,-151.0,0.00022,7]
[385237308,1757699448697,-151.0,0.00022,7]
[385237310,1757699448709,-214.52,0.00022,7]
[385237312,1757699448718,-151.0,0.00022,7]
[385237314,1757699448727,-152.332847,0.00022,7]
[385237316,1757699448737,-170.107706,0.00022,7]
[385237318,1757699448746,-151.0,0.00022,7]
[385237320,1757699448755,-151.0,0.00022,7]
[385237322,1757699448765,-151.0,0.00022,7]
[385237324,1757699448775,-151.0,0.00022,7]
[385237326,1757699448785,-151.0,0.00022,7]
[385237328,1757699448794,-151.0,0.00022,7]
[385237330,1757699448803,-151.0,0.00022,7]
[385237332,1757699448813,-151.0,0.00022,7]
[385237334,1757699448823,-151.0,0.00022,7]
[385237336,1757699448838,-158.973971,0.00022,7]
[385237338,1757699448848,-151.0,0.00022,7]
[385237340,1757699448857,-151.0,0.00022,7]
[385237342,1757699448866,-151.933697,0.00022,7]
[385237344,1757699448877,-151.0,0.00022,7]
[385237347,1757699448887,-151.0,0.00022,7]
[385237349,1757699448896,-151.0,0.00022,7]
[385237351,1757699448906,-151.0,0.00022,7]
[385237353,1757699448915,-151.0,0.00022,7]
[385237355,1757699448925,-241.0,0.00022,7]
[385237357,1757699448934,-151.0,0.00022,7]
[385237359,1757699448945,-151.0,0.00022,7]
[385237361,1757699448955,-151.0,0.00022,7]
[385237363,1757699448965,-151.0,0.00022,7]
[385237365,1757699448975,-151.0,0.00022,7]
[385237367,1757699448984,-290.527178,0.00022,7]
[385237369,1757699448994,-151.0,0.00022,7]
[385237371,1757699449005,-151.0,0.00022,7]
[385237373,1757699449015,-199.371615,0.00022,7]
[385237375,1757699449024,-157.87158,0.00022,7]
[385237377,1757699449034,-151.0,0.00022,7]
[385237379,1757699449043,-151.0,0.00022,7]
[385237381,1757699449053,-151.0,0.00022,7]
[385237383,1757699449062,-151.0,0.00022,7]
[385237385,1757699449071,-151.0,0.00022,7]
[385237387,1757699449080,-151.0,0.00022,7]
[385237389,1757699449089,-151.0,0.00022,7]
[385237391,1757699449098,-179.251271,0.00022,7]
[385237393,1757699449108,-179.251271,0.00022,7]
[385237395,1757699449117,-179.251271,0.00022,7]
[385237397,1757699449127,-179.251271,0.00022,7]
[385237399,1757699449136,-179.251271,0.00022,7]
[385237401,1757699449146,-179.251271,0.00022,7]
[385237403,1757699449155,-179.251271,0.00022,7]
[385237405,1757699449164,-151.0,0.00022,7]
[385237407,1757699449174,-160.470075,0.00022,7]
[385237409,1757699449183,-179.251263,0.00022,7]
[385237411,1757699449192,-154.62876,0.00022,7]
[385237413,1757699449201,-180.584859,0.00022,7]
[385237415,1757699449210,-180.584859,0.00022,7]
[385237417,1757699449219,-180.584859,0.00022,7]
[385237419,1757699449228,-180.584859,0.00022,7]
[385237421,1757699449237,-180.584859,0.00022,7]
[385237423,1757699449246,-180.584859,0.00022,7]
[385237425,1757699449254,-151.0,0.00022,7]
[385237427,1757699449263,-151.0,0.00022,7]
[385237429,1757699449272,-151.0,0.00022,7]
[385237431,1757699449281,-180.584859,0.00022,7]
[385237433,1757699449291,-180.584858,0.00022,7]
[385237435,1757699449300,-151.0,0.00022,7]
[385237437,1757699449309,-151.0,0.00022,7]
[385237439,1757699449318,-151.0,0.00022,7]
[385237441,1757699449327,-151.0,0.00022,7]
[385237443,1757699449336,-151.0,0.00022,7]
[385237444,1757699449345,-151.0,0.00022,7]
[385237446,1757699449354,-151.0,0.00022,7]
[385237449,1757699449364,-151.0,0.00022,7]
[385237451,1757699449373,-151.0,0.00022,7]
[385237453,1757699449382,-301.047083,0.00022,7]
[385237455,1757699449392,-201.191937,0.00022,7]
[385237457,1757699449401,-201.191937,0.00022,7]
[385237459,1757699449410,-201.191937,0.00022,7]
[385237461,1757699449419,-201.191937,0.00022,7]
[385237462,1757699449428,-201.191937,0.00022,7]
[385237465,1757699449437,-201.191937,0.00022,7]
[385237467,1757699449447,-201.191937,0.00022,7]
[385237469,1757699449456,-201.191937,0.00022,7]
[385237471,1757699449465,-201.191937,0.00022,7]
[385237473,1757699449474,-201.191937,0.00022,7]
[385237475,1757699449483,-201.191937,0.00022,7]
[385237477,1757699449495,-201.191941,0.00022,7]
[385237478,1757699449505,-151.0,0.00022,7]
[385237479,1757699449514,-151.0,0.00022,7]
[385237480,1757699449523,-151.0,0.00022,7]
[385237481,1757699449532,-151.0,0.00022,7]
[385237482,1757699449542,-151.0,0.00022,7]
[385237483,1757699449550,-461.18241,0.00022,7]
[385237484,1757699449560,-461.18241,0.00022,7]
[385237485,1757699449569,-461.18241,0.00022,7]
[385237486,1757699449578,-461.18241,0.00022,7]
[385237487,1757699449590,-461.18241,0.00022,7]
[385237489,1757699449599,-461.18241,0.00022,7]
[385237491,1757699449608,-151.0,0.00022,7]
[385237493,1757699449617,-258.177062,0.00022,7]
[385237495,1757699449626,-461.18241,0.00022,7]
[385237497,1757699449635,-461.18241829,0.00022,7]
[385237499,1757699449644,-151.0,0.00022,7]
[385237501,1757699449654,-151.0,0.00022,7]
[385237503,1757699449663,-180.038208,0.00022,7]
[385237505,1757699449672,-154.634958,0.00022,7]
[385237507,1757699449681,-151.0,0.00022,7]
[385237509,1757699449690,-151.0,0.00022,7]
[385237511,1757699449699,-151.0,0.00022,7]
[385237513,1757699449708,-151.0,0.00022,7]
[385237525,1757699449814,-151.0,0.00022,7]
[385237527,1757699449824,-151.0,0.00022,7]
[385237530,1757699449833,-261.140728,0.00022,7]
[385237531,1757699449842,-261.140728,0.00022,7]
[385237534,1757699449852,-261.140728,0.00022,7]
[385237536,1757699449862,-261.140728,0.00022,7]
[385237538,1757699449871,-261.140728,0.00022,7]
[385237540,1757699449880,-261.140728,0.00022,7]
[385237542,1757699449889,-261.140728,0.00022,7]
[385237544,1757699449898,-261.140728,0.00022,7]
[385237546,1757699449908,-261.140728,0.00022,7]
[385237548,1757699449917,-155.297706,0.00022,7]
[385237550,1757699449926,-261.140728,0.00022,7]
[385237552,1757699449936,-261.140728,0.00022,7]
[385237554,1757699449945,-261.140729,0.00022,7]
[385237556,1757699449954,-151.0,0.00022,7]
[385237558,1757699449963,-151.0,0.00022,7]
[385237560,1757699449972,-335.28,0.00022,2]
[385237562,1757699449981,-151.0,0.00022,7]
[385237564,1757699449990,-151.0,0.00022,7]
[385237566,1757699450000,-215.543735,0.00022,7]
[385237568,1757699450009,-188.4666082,0.00022026,2]
[385237570,1757699450018,-188.4666082,0.00022026,2]
[385237571,1757699450028,-188.4666082,0.00022026,2]
[385237573,1757699450039,-188.4666082,0.00022026,2]
[385237575,1757699450048,-188.4666082,0.00022026,2]
[385237577,1757699450058,-188.4666082,0.00022026,2]
[385237579,1757699450067,-188.4666082,0.00022026,2]
[385237582,1757699450077,-188.4666082,0.00022026,2]
[385237584,1757699450088,-188.4666082,0.00022026,2]
[385237586,1757699450097,-188.4666082,0.00022026,2]
[385237588,1757699450106,-335.0,0.00022108,2]
[385237590,1757699450117,-300.0,0.00022129,20]
[385237592,1757699450126,-300.0,0.00022129,20]
[385237594,1757699450135,-300.0,0.00022129,20]
[385237596,1757699450144,-300.0,0.00022129,20]
[385237598,1757699450153,-300.0,0.00022129,20]
[385237600,1757699450163,-300.0,0.00022129,20]
[385237602,1757699450172,-300.0,0.00022129,20]
[385237604,1757699450181,-300.0,0.00022129,20]
[385237606,1757699450190,-300.0,0.00022129,20]
[385237608,1757699450200,-300.0,0.00022129,20]
[385237610,1757699450209,-300.0,0.00022129,20]
[385237612,1757699450218,-300.0,0.00022129,20]
[385237613,1757699450228,-300.0,0.00022129,20]
[385237615,1757699450237,-300.0,0.00022129,20]
[385237617,1757699450246,-300.0,0.00022129,20]
[385237619,1757699450256,-600.0,0.00022129,20]
[385237621,1757699450265,-366.38891172,0.00022321,2]
[385237623,1757699450275,-1000.0,0.00022321,2]
[385237625,1757699450284,-500.82849927,0.00022321,2]
[385237627,1757699450293,-6459.98979938,0.00022398,2]
[385237629,1757699450304,-966.43127937,0.00022423,2]
[385237631,1757699450314,-193.55066648,0.00022521,2]
[385237634,1757699450324,-1051.92065033,0.00022521,2]
[385237636,1757699450333,-1000.0,0.00022521,2]
[385237638,1757699450342,-501.07470523,0.00022521,2]
[385237640,1757699450351,-1000.0,0.00022521,2]
[385237642,1757699450361,-1000.0,0.00022521,2]
[385237643,1757699450370,-1000.0,0.00022521,2]
[385237646,1757699450379,-151.0,0.00022521,7]
[385237648,1757699450389,-151.0,0.00022521,7]
[385237649,1757699450398,-151.0,0.00022521,7]
[385237651,1757699450407,-151.0,0.00022521,7]
[385237652,1757699450417,-151.0,0.00022521,7]
[385237654,1757699450426,-151.0,0.00022521,7]
[385237656,1757699450435,-151.0,0.00022558,7]
[385237657,1757699450444,-1631.82304966,0.000226,2]
[385237659,1757699450453,-1000.0,0.00022644,5]
[385237661,1757699450463,-160.094239,0.00022659,2]
[385237662,1757699450472,-151.0,0.000228,8]
[385237664,1757699450481,-335.28,0.00022867,2]
[385237665,1757699450490,-500.0,0.00022868,2]
[385237667,1757699450501,-814.4024003,0.000229,2]
[385237669,1757699450510,-981.26,0.0002296,3]
[385237670,1757699450519,-490.62,0.0002296,3]
[385237672,1757699450528,-374.38,0.0002296,3]
[385237674,1757699450537,-788.64,0.0002296,3]
[385237675,1757699450546,-394.32,0.0002296,3]
[385237677,1757699450555,-377.7,0.0002296,3]
[385237678,1757699450564,-464.7,0.0002296,3]
[385237680,1757699450573,-423.9,0.0002296,3]
[385237682,1757699450582,-976.0,0.00022999,2]
[385237683,1757699450592,-653.379,0.00022999,2]
[385237685,1757699450601,-2157.799,0.00022999,2]
[385237686,1757699450610,-409.0,0.00022999,2]
[385237688,1757699450620,-160.0,0.00023,3]
[385237690,1757699450629,-847.0429734,0.00023,3]
[385237691,1757699450638,-217.7145751,0.00023,3]
[385237693,1757699450647,-233.13074058,0.00023,3]
[385237695,1757699450657,-1000.0,0.00023068,2]
[385237696,1757699450666,-1000.0,0.00023068,2]
[385237698,1757699450675,-151.0,0.000231,9]
[385237700,1757699450684,-168.0,0.00023165,2]
[385237701,1757699450693,-1066.25,0.00023287,2]
[385237703,1757699450702,-500.67034155,0.00023289,2]
[385237705,1757699450711,-1631.82304966,0.000233,2]
[385237707,1757699450720,-500.0,0.00023373,2]
[385237708,1757699450729,-258.55327222,0.00023373,2]
[385237710,1757699450738,-501.14702139,0.00023373,2]
[385237712,1757699450749,-416.18385681,0.00023373,2]
[385237713,1757699450758,-500.0,0.00023373,2]
[385237715,1757699450767,-500.82580189,0.00023373,2]
[385237717,1757699450776,-500.0,0.00023373,2]
[385237719,1757699450785,-500.0,0.00023373,2]
[385237720,1757699450794,-160.11902088,0.00023373,2]
[385237722,1757699450803,-500.0,0.00023373,2]
[385237724,1757699450812,-450.69579945,0.00023373,2]
[385237726,1757699450821,-500.0,0.00023373,2]
[385237727,1757699450830,-189.82062454,0.00023373,2]
[385237729,1757699450840,-500.0,0.00023373,2]
[385237731,1757699450850,-340.04256151,0.00023373,2]
[385237733,1757699450860,-3152.28,0.000234,7]
[385237734,1757699450869,-159817.92,0.000234,7]
[385237736,1757699450879,-151.0,0.000234,7]
[385237738,1757699450888,-168.0,0.00023416,2]
[385237740,1757699450898,-181.717738,0.00023478,2]
[385237741,1757699450907,-500.0,0.00023517,2]
[385237743,1757699450916,-500.0,0.00023517,2]
[385237745,1757699450925,-500.0,0.0002356,2]
[385237747,1757699450935,-500.0,0.0002356,2]
[385237748,1757699450944,-168.0,0.00023606,2]
[385237750,1757699450953,-200.0,0.0002362,8]
[385237752,1757699450962,-6459.98979938,0.00023647,2]
[385237754,1757699450971,-151.0,0.000237,6]
[385237755,1757699450982,-151.0,0.000237,6]
[385237757,1757699450991,-500.0,0.00023725,2]
[385237759,1757699451000,-335.28,0.00023734,2]
[385237761,1757699451009,-168.0,0.00023766,2]
[385237762,1757699451018,-1000.0,0.00023921,2]
[385237764,1757699451027,-1000.0,0.00023921,2]
[385237766,1757699451037,-1000.0,0.00023921,2]
[385237768,1757699451046,-1000.0,0.00023921,2]
[385237769,1757699451054,-1002.88419253,0.00023921,2]
[385237771,1757699451064,-1000.0,0.00023921,2]
[385237773,1757699451073,-155.0,0.00023979,2]
[385237774,1757699451082,-168.0,0.00023992,2]
[385237776,1757699451091,-160.0,0.00024,7]
[385237778,1757699451100,-160.0,0.00024,7]
[385237780,1757699451109,-151.0,0.00024,9]
[385237781,1757699451118,-1024.55115394,0.00024,2]
[385237783,1757699451128,-151.0,0.00024,7]
[385237785,1757699451137,-151.0,0.00024,5]
[385237787,1757699451146,-847.0429734,0.00024,7]
[385237788,1757699451157,-217.7145751,0.00024,7]
[385237790,1757699451166,-1631.82304966,0.00024,2]
[385237792,1757699451176,-233.13074058,0.00024,7]
[385237793,1757699451185,-1000.0,0.00024065,2]
[385237795,1757699451195,-1000.0,0.00024065,2]
[385237797,1757699451204,-1000.0,0.00024108,2]
[385237798,1757699451213,-168.0,0.00024171,2]
[385237800,1757699451223,-932.8441636,0.00024173,2]
[385237801,1757699451232,-1224.0128647,0.00024173,2]
[385237803,1757699451241,-168.0,0.00024248,2]
[385237805,1757699451251,-1000.0,0.00024273,2]
[385237806,1757699451260,-13890.94,0.000243,7]
[385237808,1757699451270,-151.0,0.000243,10]
[385237810,1757699451284,-151.0,0.000243,10]
[385237812,1757699451293,-151.0,0.000243,9]
[385237813,1757699451302,-847.0429734,0.000243,10]
[385237815,1757699451311,-160.0,0.000243,10]
[385237817,1757699451320,-233.13074058,0.000243,10]
[385237819,1757699451329,-720.0,0.00024342,20]
[385237820,1757699451344,-500.0,0.00024384,9]
[385237822,1757699451355,-500.0,0.00024468,2]
[385237824,1757699451364,-1500.0,0.00024468,2]
[385237825,1757699451375,-1500.0,0.00024468,2]
[385237827,1757699451392,-1500.0,0.00024468,2]
[385237829,1757699451401,-1002.06370492,0.00024468,2]
[385237830,1757699451409,-168.0,0.00024475,2]
[385237832,1757699451419,-43917.11265278,0.000245,7]
[385237843,1757699451551,-830.6395,0.000245,7]
[385237844,1757699451562,-6585.24589597,0.000245,7]
[385237845,1757699451574,-29942.77572349,0.000245,7]
[385237846,1757699451586,-2763.69164716,0.000245,7]
[385237847,1757699451598,-6817.32648989,0.000245,7]
[385241469,1757699529859,10000.0,0.00024,30]
[385241479,1757699905291,470.359824,0.00013699,2]
[385241555,1757700632195,-323.3527731,0.00017669,2]
[385241620,1757700632708,-265.62946839,0.00017747,2]
[385241622,1757700632718,-323.3527731,0.00017847,2]
[385241624,1757700632728,-211.7875157,0.00018359,2]
[385241626,1757700632738,-500.0,0.000184,2]
[385241628,1757700632747,-160.0,0.00018725,2]
[385241630,1757700632757,-160.0,0.00018725,2]
[385241632,1757700632767,-323.3527731,0.00018767,2]
[385241634,1757700632776,-160.0,0.00018963,2]
[385241636,1757700632786,-160.0,0.00018963,2]
[385241638,1757700632796,-160.0,0.00018963,2]